fUSD/lending_fUSD_20260311
["ID","MTS","AMOUNT","RATE_DAILY","PERIOD"]
[408228144,1773268245919,-168.0,0.00021276,2]
[408228145,1773268245928,-347.56,0.000213,2]
[408228146,1773268245937,-533.36,0.00021327,2]
[408228147,1773268245946,-1000.0,0.0002137,2]
[408228148,1773268245955,-781.74,0.00021402,2]
[408228149,1773268245964,-166.66,0.00021413,2]
[408228150,1773268245974,-1000.0,0.00021421,2]
[408228151,1773268245983,-1000.0,0.00021421,2]
[408228152,1773268245992,-1000.0,0.00021421,2]
[408228153,1773268246001,-1000.0,0.00021421,2]
[408228154,1773268246010,-250.0,0.00021421,2]
[408228155,1773268246020,-250.0,0.00021421,2]
[408228156,1773268246028,-151.0,0.00021421,2]
[408228157,1773268246038,-151.0,0.00021421,2]
[408228158,1773268246047,-758.580963,0.00021421,2]
[408228159,1773268246057,-758.580963,0.00021421,2]
[408228160,1773268246066,-758.580963,0.00021421,2]
[408228161,1773268246075,-758.580963,0.00021421,2]
[408228162,1773268246084,-151.0,0.00021421,2]
[408228163,1773268246093,-151.0,0.00021421,2]
[408228164,1773268246101,-151.0,0.00021421,2]
[408228165,1773268246110,-959.11608175,0.00021516,2]
[408228166,1773268246119,-2000.0,0.00021516,2]
[408228167,1773268246128,-1784.93031767,0.00021516,2]
[408228168,1773268246137,-500.0,0.00021516,2]
[408228169,1773268246146,-1879.27,0.00021595,2]
[408228170,1773268246155,-1753.22,0.00021595,2]
[408228171,1773268246164,-1684.62729861,0.00021616,2]
[408228172,1773268246173,-1626.35645549,0.00021616,2]
[408228173,1773268246182,-2000.0,0.00021616,2]
[408228174,1773268246191,-539.81087026,0.00021616,2]
[408228175,1773268246200,-2000.0,0.00021616,2]
[408228176,1773268246209,-2000.0,0.00021616,2]
[408228177,1773268246218,-2000.0,0.00021616,2]
[408228178,1773268246227,-2000.0,0.00021616,2]
[408228179,1773268246237,-2000.0,0.00021616,2]
[408228180,1773268246246,-172.15834601,0.00021616,2]
[408228181,1773268246257,-2000.0,0.00021616,2]
[408228182,1773268246266,-2000.0,0.00021616,2]
[408228183,1773268246275,-2000.0,0.00021616,2]
[408228184,1773268246283,-1712.35153712,0.00021616,2]
[408228185,1773268246292,-2000.0,0.00021616,2]
[408228186,1773268246302,-1255.97212656,0.00021616,2]
[408228187,1773268246311,-2000.0,0.00021616,2]
[408228188,1773268246320,-2000.0,0.00021616,2]
[408228189,1773268246330,-1411.69606162,0.00021616,2]
[408228190,1773268246339,-673.84044557,0.00021616,2]
[408228191,1773268246348,-2000.0,0.00021616,2]
[408228192,1773268246357,-2000.0,0.00021616,2]
[408228193,1773268246367,-1329.50518993,0.00021616,2]
[408228194,1773268246375,-2000.0,0.00021616,2]
[408228195,1773268246384,-1000.0,0.00021644,2]
[408228196,1773268246393,-524.63,0.00021676,2]
[408228198,1773268246402,-151.0,0.00021729,2]
[408228200,1773268246412,-299.069507,0.00021729,2]
[408228201,1773268246421,-1449.391515,0.00021729,2]
[408228202,1773268246430,-1449.391515,0.00021729,2]
[408228203,1773268246439,-1449.391515,0.00021729,2]
[408228204,1773268246448,-1449.391511,0.00021729,2]
[408228205,1773268246457,-1000.0,0.00021729,2]
[408228206,1773268246466,-1000.0,0.00021729,2]
[408228207,1773268246475,-1000.0,0.00021729,2]
[408228208,1773268246485,-1000.0,0.00021729,2]
[408228209,1773268246498,-399.12,0.00021829,2]
[408228210,1773268246511,-289.9,0.0002189,2]
[408228211,1773268246520,-5000.0,0.00021918,2]
[408228212,1773268246529,-2028.828629,0.00021918,2]
[408228213,1773268246538,-2028.828629,0.00021918,2]
[408228214,1773268246547,-2028.828629,0.00021918,2]
[408228215,1773268246557,-2028.828629,0.00021918,2]
[408228216,1773268246567,-2028.828629,0.00021918,2]
[408228217,1773268246576,-2028.828629,0.00021918,2]
[408228218,1773268246585,-2028.828629,0.00021918,2]
[408228219,1773268246594,-2028.828629,0.00021918,2]
[408228220,1773268246605,-2028.828629,0.00021918,2]
[408228221,1773268246615,-2028.828629,0.00021918,2]
[408228222,1773268246625,-2028.828629,0.00021918,2]
[408228223,1773268246635,-2028.828629,0.00021918,2]
[408228224,1773268246645,-2028.828629,0.00021918,2]
[408228225,1773268246654,-2028.828629,0.00021918,2]
[408228226,1773268246664,-2028.828629,0.00021918,2]
[408228227,1773268246673,-2028.828629,0.00021918,2]
[408228228,1773268246683,-2028.828629,0.00021918,2]
[408228229,1773268246692,-2028.828629,0.00021918,2]
[408228230,1773268246701,-2028.828629,0.00021918,2]
[408228231,1773268246711,-2028.828622,0.00021918,2]
[408228232,1773268246720,-151.0,0.00021918,2]
[408228233,1773268246730,-151.0,0.00021918,2]
[408228234,1773268246740,-151.0,0.00021918,2]
[408228235,1773268246750,-151.0,0.00021918,2]
[408228236,1773268246759,-151.0,0.00021918,2]
[408228237,1773268246769,-151.0,0.00021918,2]
[408228238,1773268246778,-151.000025,0.00021918,2]
[408228239,1773268246787,-334.67,0.00021918,2]
[408228240,1773268246796,-500.0,0.00021918,2]
[408228241,1773268246805,-500.0,0.00021918,2]
[408228242,1773268246815,-500.0,0.00021918,2]
[408228243,1773268246823,-500.0,0.00021918,2]
[408228244,1773268246832,-500.0,0.00021918,2]
[408228245,1773268246841,-774.0,0.00021918,2]
[408228246,1773268246850,-1000.0,0.00021918,2]
[408228247,1773268246859,-161.55486396,0.00021918,2]
[408228248,1773268246873,-500.0,0.00021918,2]
[408228249,1773268246882,-150.0,0.00021918,2]
[408228250,1773268246891,-200.0,0.00021968,90]
[408228251,1773268246901,-200.0,0.00021968,90]
[408228252,1773268246910,-200.0,0.00021968,90]
[408228253,1773268246918,-200.0,0.00021968,90]
[408228254,1773268246927,-200.0,0.00021968,90]
[408228255,1773268246936,-200.0,0.00021968,90]
[408228256,1773268246945,-200.0,0.00021968,90]
[408228257,1773268246955,-200.0,0.00021968,90]
[408228258,1773268246964,-200.0,0.00021968,90]
[408228259,1773268246974,-200.0,0.00021968,90]
[408228260,1773268246983,-200.0,0.00021968,90]
[408228261,1773268246992,-200.0,0.00021968,90]
[408228262,1773268247000,-200.0,0.00021968,90]
[408228263,1773268247009,-200.0,0.00021968,90]
[408228264,1773268247018,-200.0,0.00021968,90]
[408228265,1773268247027,-200.0,0.00021968,90]
[408228266,1773268247036,-200.0,0.00021968,90]
[408228267,1773268247045,-200.0,0.00021968,90]
[408228268,1773268247054,-200.0,0.00021968,90]
[408228269,1773268247063,-200.0,0.00021968,90]
[408228270,1773268247072,-200.0,0.00021968,90]
[408228271,1773268247081,-200.0,0.00021968,90]
[408228272,1773268247090,-280.222987,0.00021968,90]
[408228273,1773268247098,-1500.0,0.00021968,2]
[408228274,1773268247107,-1003.8642618,0.00021968,2]
[408228275,1773268247118,-1503.88801889,0.00021968,2]
[408228276,1773268247127,-1500.0,0.00021968,2]
[408228277,1773268247136,-350.0,0.00021968,2]
[408228278,1773268247145,-350.0,0.00021968,2]
[408228279,1773268247155,-500.0,0.00021973,2]
[408228280,1773268247165,-205.25,0.00021981,2]
[408228281,1773268247174,-500.0,0.00022028,2]
[408228282,1773268247183,-256.61473022,0.00022064,2]
[408228283,1773268247192,-500.0,0.00022064,2]
[408228284,1773268247202,-500.0,0.00022082,2]
[408228285,1773268247212,-465.78,0.00022114,2]
[408228286,1773268247222,-166.66,0.0002212,2]
[408228287,1773268247233,-500.0,0.00022137,2]
[408228288,1773268247241,-170.49,0.00022162,2]
[408228289,1773268247250,-166.34188309,0.00022164,2]
[408228290,1773268247260,-2500.0,0.00022164,2]
[408228291,1773268247270,-424.05968887,0.00022164,2]
[408228292,1773268247279,-2094.83845957,0.00022164,2]
[408228293,1773268247288,-1226.86168835,0.00022164,2]
[408228294,1773268247298,-1243.89521836,0.00022164,2]
[408228295,1773268247308,-997.89893193,0.00022164,2]
[408228296,1773268247317,-564.55995824,0.00022164,2]
[408228297,1773268247328,-159.40499402,0.00022164,2]
[408228298,1773268247337,-1500.0,0.00022164,2]
[408228299,1773268247346,-1352.45780266,0.00022164,2]
[408228300,1773268247355,-453.9092068,0.00022164,2]
[408228301,1773268247365,-1354.92103429,0.00022164,2]
[408228302,1773268247374,-1537.88538391,0.00022164,2]
[408228303,1773268247384,-1000.0,0.00022192,2]
[408228304,1773268247395,-632.72498791,0.00022192,2]
[408228305,1773268247404,-758.580963,0.00022277,2]
[408228306,1773268247414,-758.580963,0.00022277,2]
[408228307,1773268247424,-758.580963,0.00022277,2]
[408228308,1773268247433,-758.580963,0.00022277,2]
[408228309,1773268247444,-296.576934,0.00022277,2]
[408228310,1773268247453,-151.0,0.00022277,2]
[408228311,1773268247462,-175.513634,0.00022277,2]
[408228312,1773268247471,-1500.0,0.00022277,2]
[408228313,1773268247480,-1500.0,0.00022277,2]
[408228314,1773268247492,-1045.85229445,0.00022277,2]
[408228315,1773268247502,-1500.0,0.00022277,2]
[408228316,1773268247511,-8137.59999025,0.00022284,2]
[408228317,1773268247520,-187.963813,0.00022284,2]
[408228318,1773268247529,-1000.0,0.00022466,2]
[408228319,1773268247538,-167.685632,0.00022516,2]
[408228320,1773268247547,-151.0,0.00022516,2]
[408228321,1773268247558,-451.46485762,0.00022516,2]
[408228322,1773268247569,-423.19430583,0.00022516,2]
[408228323,1773268247578,-450.0,0.00022516,2]
[408228324,1773268247588,-450.0,0.00022516,2]
[408228325,1773268247598,-3000.0,0.00022712,2]
[408228326,1773268247612,-1000.0,0.0002274,2]
[408228327,1773268247626,-2000.0,0.00022825,2]
[408228328,1773268247640,-2000.0,0.00022825,2]
[408228329,1773268247650,-2000.0,0.00022825,2]
[408228330,1773268247659,-166.66,0.00022827,2]
[408228331,1773268247668,-399.12,0.00022869,2]
[408228332,1773268247678,-500.0,0.00022999,2]
[408228333,1773268247687,-500.0,0.00022999,2]
[408228334,1773268247696,-500.0,0.00022999,2]
[408228335,1773268247706,-500.0,0.00022999,2]
[408228336,1773268247717,-27092.74522438,0.00023,30]
[408228337,1773268247726,-758.580963,0.00023,2]
[408228338,1773268247737,-758.580963,0.00023,2]
[408228339,1773268247747,-758.580963,0.00023,2]
[408228340,1773268247757,-758.580966,0.00023,2]
[408228341,1773268247767,-151.0,0.00023,2]
[408228342,1773268247777,-1000.0,0.00023014,2]
[408228343,1773268247787,-500.0,0.00023064,2]
[408228344,1773268247796,-550.0,0.00023064,2]
[408228345,1773268247805,-550.0,0.00023064,2]
[408228346,1773268247814,-545.29944887,0.00023107,2]
[408228347,1773268247823,-2000.0,0.0002312,2]
[408228348,1773268247832,-9087.2090106,0.00023139,2]
[408228349,1773268247841,-1252.84,0.00023207,2]
[408228350,1773268247850,-1252.3,0.00023207,2]
[408228351,1773268247859,-486.80125145,0.0002326,2]
[408228352,1773268247869,-1999.0,0.00023288,2]
[408228353,1773268247878,-334.67,0.0002336,2]
[408228354,1773268247887,-1214.55915429,0.00023373,2]
[408228355,1773268247896,-1139.92342412,0.00023373,2]
[408228356,1773268247906,-420.23,0.00023388,2]
[408228357,1773268247916,-191.5,0.000234,7]
[408228358,1773268247926,-166.66,0.00023534,2]
[408228359,1773268247940,-310.52,0.00023555,2]
[408228360,1773268247953,-650.0,0.00023612,2]
[408228361,1773268247964,-650.0,0.00023612,2]
[408228362,1773268247973,-3250.0,0.00023859,7]
[408228363,1773268247983,-3250.0,0.00023859,7]
[408228364,1773268247994,-3250.0,0.00023859,7]
[408228365,1773268248004,-3250.0,0.00023859,7]
[408228366,1773268248015,-3250.0,0.00023859,7]
[408228367,1773268248033,-3250.0,0.00023859,7]
[408228368,1773268248055,-150.0,0.00023859,7]
[408228369,1773268248065,-198.0,0.00023859,7]
[408228370,1773268248074,-900.0,0.00023859,7]
[408228371,1773268248083,-900.0,0.00023859,7]
[408228372,1773268248093,-900.0,0.00023859,7]
[408228373,1773268248102,-900.0,0.00023859,7]
[408228374,1773268248111,-900.0,0.00023859,7]
[408228375,1773268248120,-861.0,0.00023859,7]
[408228376,1773268248130,-750.0,0.00023859,7]
[408228377,1773268248139,-750.0,0.00023859,7]
[408228378,1773268248148,-750.0,0.00023859,7]
[408228379,1773268248157,-750.0,0.00023859,7]
[408228380,1773268248166,-750.0,0.00023859,7]
[408228381,1773268248176,-687.0,0.00023859,7]
[408228382,1773268248185,-399.12,0.00023908,2]
[408228383,1773268248194,-310.52,0.0002397,2]
[408228384,1773268248203,-3425.01,0.00024,7]
[408228385,1773268248213,-170.49,0.00024022,2]
[408228386,1773268248222,-347.56,0.000241,7]
[408228387,1773268248231,-7147.76768481,0.000241,2]
[408228388,1773268248240,-750.0,0.0002416,2]
[408228389,1773268248390,-750.0,0.0002416,2]
[408228390,1773268248399,-166.66,0.00024241,2]
[408228391,1773268248409,-310.52,0.00024386,2]
[408228392,1773268248419,-250.0,0.00024551,2]
[408228393,1773268248428,-250.0,0.00024551,2]
[408228394,1773268248437,-250.0,0.00024551,2]
[408228395,1773268248446,-250.0,0.00024551,2]
[408228396,1773268248455,-250.0,0.00024551,2]
[408228397,1773268248465,-250.0,0.00024551,2]
[408228398,1773268248475,-250.0,0.00024551,2]
[408228399,1773268248485,-250.0,0.00024551,2]
[408228400,1773268248498,-389.0,0.00024551,2]
[408228401,1773268248508,-300.0,0.00024554,2]
[408228402,1773268248518,-300.0,0.00024554,2]
[408228403,1773268248527,-300.0,0.00024554,2]
[408228404,1773268248537,-300.0,0.00024554,2]
[408228405,1773268248546,-300.0,0.00024554,2]
[408228406,1773268248555,-300.0,0.00024554,2]
[408228407,1773268248565,-300.0,0.00024554,2]
[408228408,1773268248575,-300.0,0.00024554,2]
[408228409,1773268248584,-300.0,0.00024554,2]
[408228410,1773268248594,-186.0,0.00024554,2]
[408228411,1773268248604,-1087.81,0.00024658,2]
[408228412,1773268248614,-1000.0,0.00024658,2]
[408228413,1773268248624,-154.238167,0.00024658,2]
[408228414,1773268248634,-151.0,0.00024658,2]
[408228415,1773268248644,-151.0,0.00024658,2]
[408228416,1773268248653,-151.0,0.00024658,2]
[408228417,1773268248663,-150.0,0.00024658,2]
[408228418,1773268248673,-850.0,0.00024708,2]
[408228419,1773268248683,-203.79285474,0.00024708,2]
[408228420,1773268248693,-187.0,0.0002473,2]
[408228421,1773268248703,-334.67,0.00024802,2]
[408228422,1773268248716,-37212.0,0.00024877,2]
[408228423,1773268248725,-500.0,0.00024899,2]
[408228424,1773268248735,-150.0,0.00024899,2]
[408228425,1773268248745,-150.0,0.00024899,2]
[408228426,1773268248756,-150.0,0.00024899,2]
[408228427,1773268248771,-150.0,0.00024899,2]
[408228428,1773268248781,-163.06057533,0.00024899,2]
[408228429,1773268248791,-194.115043,0.000249,2]
[408228430,1773268248800,-172.95802059,0.000249,3]
[408228431,1773268248812,-399.12,0.00024947,2]
[408228432,1773268248822,-166.66,0.00024947,2]
[408228433,1773268248831,-999.99,0.0002498,2]
[408228434,1773268248841,-150.99,0.0002498,2]
[408228435,1773268248850,-1353.49,0.0002498,2]
[408228436,1773268248860,-978.18,0.0002498,2]
[408228437,1773268248869,-172.95802059,0.00024994,2]
[408228438,1773268248879,-188.89903466,0.00025086,2]
[408228439,1773268248889,-950.0,0.00025256,2]
[408228440,1773268248898,-2000.0,0.00025431,2]
[408228441,1773268248908,-172.95802059,0.000256,3]
[408228442,1773268248917,-1050.0,0.00025804,2]
[408228443,1773268248927,-150.0,0.0002589,2]
[408228444,1773268248936,-420.23,0.00025987,120]
[408228445,1773268248946,-334.67,0.00026244,2]
[408228446,1773268248955,-2000.0,0.00026312,2]
[408228447,1773268248965,-1988.0,0.00026312,2]
[408228448,1773268248974,-1150.0,0.00026312,2]
[408228449,1773268248984,-1150.0,0.00026312,2]
[408228450,1773268248992,-1150.0,0.00026312,2]
[408228451,1773268249001,-1150.0,0.00026312,2]
[408228452,1773268249010,-1150.0,0.00026312,2]
[408228453,1773268249027,-1150.0,0.00026312,2]
[408228454,1773268249035,-1150.0,0.00026312,2]
[408228455,1773268249044,-1059.0,0.00026312,2]
[408228456,1773268249053,-864.08408025,0.00026352,2]
[408228457,1773268249062,-170.49,0.00026387,2]
[408228458,1773268249070,-9087.2090106,0.00026478,2]
[408228459,1773268249080,-150.0621866,0.00026577,2]
[408228460,1773268249090,-150.0,0.0002673,7]
[408228461,1773268249100,-150.0,0.0002673,7]
[408228462,1773268249110,-150.0,0.0002673,7]
[408228463,1773268249119,-230.0,0.0002673,7]
[408228464,1773268249128,-405.97058326,0.00026745,18]
[408228465,1773268249138,-300.0,0.00026851,10]
[408228466,1773268249147,-666.0,0.00026851,2]
[408228467,1773268249157,-1450.0,0.00026852,14]
[408228468,1773268249166,-1450.0,0.00026852,14]
[408228469,1773268249176,-1450.0,0.00026852,14]
[408228470,1773268249185,-1450.0,0.00026852,14]
[408228471,1773268249194,-1450.0,0.00026852,14]
[408228472,1773268249207,-1175.0,0.00026852,14]
[408228473,1773268249217,-1200.0,0.00026852,14]
[408228474,1773268249226,-1200.0,0.00026852,14]
[408228475,1773268249235,-1200.0,0.00026852,14]
[408228476,1773268249244,-1200.0,0.00026852,14]
[408228477,1773268249253,-1200.0,0.00026852,14]
[408228478,1773268249261,-971.0,0.00026852,14]
[408228479,1773268249270,-150.0,0.00026852,14]
[408228480,1773268249279,-150.0,0.00026852,14]
[408228481,1773268249287,-256.0,0.00026852,14]
[408228482,1773268249296,-170.49,0.00026892,2]
[408228483,1773268249304,-150.0,0.00026913,2]
[408228484,1773268249312,-150.0,0.00026913,2]
[408228485,1773268249321,-150.0,0.00026913,2]
[408228486,1773268249330,-216.0,0.00026913,2]
[408228487,1773268249338,-172.95802059,0.00027,7]
[408228488,1773268249346,-2567.92,0.00027101,2]
[408228489,1773268249354,-150.0,0.00027123,14]
[408228490,1773268249362,-150.0,0.00027123,14]
[408228491,1773268249371,-246.0,0.00027123,14]
[408228492,1773268249380,-150.0,0.00027185,2]
[408228493,1773268249388,-151.0,0.00027235,2]
[408228494,1773268249397,-211.58358688,0.00027235,2]
[408228495,1773268249405,-939.241,0.00027235,2]
[408228496,1773268249414,-1228.73,0.00027235,2]
[408228497,1773268249423,-1043.0,0.00027235,2]
[408228498,1773268249432,-620.0,0.00027235,2]
[408228499,1773268249441,-163.314,0.00027235,2]
[408228500,1773268249449,-3506.0,0.00027235,2]
[408228501,1773268249457,-1342.0,0.00027235,2]
[408228502,1773268249465,-418.472,0.00027235,2]
[408228503,1773268249474,-506.85,0.00027396,2]
[408228504,1773268249483,-500.0,0.00027396,2]
[408228505,1773268249497,-500.0,0.00027396,2]
[408228506,1773268249507,-500.0,0.00027396,2]
[408228507,1773268249516,-500.0,0.00027396,2]
[408228508,1773268249525,-500.0,0.00027396,2]
[408228509,1773268249537,-500.0,0.00027396,2]
[408228510,1773268249547,-500.0,0.00027396,2]
[408228511,1773268249556,-500.0,0.00027396,2]
[408228512,1773268249567,-500.0,0.00027396,2]
[408228513,1773268249576,-300.0,0.00027396,10]
[408228514,1773268249585,-1050.0,0.00027397,7]
[408228515,1773268249594,-300.0,0.00027397,2]
[408228516,1773268249603,-1000.0,0.00027397,20]
[408228517,1773268249612,-1087.81,0.00027397,2]
[408228518,1773268249621,-151.0,0.00027397,2]
[408228519,1773268249631,-155.812598,0.00027397,2]
[408228520,1773268249640,-151.0,0.00027397,2]
[408228521,1773268249650,-151.0,0.00027397,2]
[408228522,1773268249659,-179.902495,0.00027397,2]
[408228523,1773268249668,-4182.13,0.00027397,10]
[408228524,1773268249677,-6529.69,0.00027397,10]
[408228525,1773268249687,-191.5,0.000275,7]
[408228526,1773268249696,-509.0,0.000275,11]
[408228527,1773268249706,-545.29944885,0.00027573,2]
[408228528,1773268249715,-1050.0,0.00027671,7]
[408228529,1773268249726,-334.67,0.00027686,2]
[408228530,1773268249735,-2000.0,0.00027743,2]
[408228531,1773268249745,-533.79,0.00027945,7]
[408228532,1773268249754,-172.95802059,0.000283,7]
[408228533,1773268249763,-347.56,0.000284,7]
[408228534,1773268249773,-7147.76768481,0.000284,2]
[408228535,1773268249782,-8320.5946601,0.00028456,2]
[408228536,1773268249791,-7884.8707352,0.00028456,2]
[408228537,1773268249801,-2969.0275274,0.00028456,2]
[408228538,1773268249810,-13606.1774496,0.00028456,2]
[408228539,1773268249819,-3425.01,0.000285,7]
[408228540,1773268249828,-150.0,0.00028544,2]
[408228541,1773268249837,-420.23,0.00028586,120]
[408228542,1773268249846,-954.59,0.00029046,2]
[408228543,1773268249856,-334.67,0.00029128,2]
[408228544,1773268249865,-9087.2090106,0.00029818,2]
[408228545,1773268249875,-150.0,0.00029971,2]
[408228546,1773268249888,-1087.81,0.00030137,2]
[408228547,1773268249898,-307.84755426,0.00030199,3]
[408228548,1773268249908,-922.0,0.00030235,2]
[408228549,1773268249919,-1213.0,0.00030235,2]
[408228550,1773268249929,-1043.0,0.00030235,2]
[408228551,1773268249940,-620.0,0.00030235,2]
[408228552,1773268249953,-3506.0,0.00030235,2]
[408228553,1773268249964,-1342.0,0.00030235,2]
[408228554,1773268249974,-334.67,0.0003057,2]
[408228555,1773268249983,-420.23,0.00031184,120]
[408228556,1773268249993,-151.0,0.00031397,7]
[408228557,1773268250004,-151.0,0.00031397,7]
[408228558,1773268250013,-510.05,0.00031399,120]
[408228559,1773268250022,-38088.43110905,0.000314,30]
[408228560,1773268250032,-150.0,0.0003147,2]
[408228561,1773268250041,-191.5,0.000315,7]
[408228562,1773268250050,-12006.81,0.00031711,2]
[408228563,1773268250059,-2706.49911918,0.00031864,2]
[408228564,1773268250068,-2057.45248293,0.00031864,2]
[408228565,1773268250078,-8679.64062478,0.00031864,2]
[408228566,1773268250087,-2729.55164584,0.00031864,2]
[408228567,1773268250096,-1854.08,0.000319,2]
[408228568,1773268250106,-334.67,0.00032012,2]
[408228569,1773268250115,-545.29944885,0.00032038,2]
[408228570,1773268250124,-1856.575619,0.0003206,2]
[408228571,1773268250133,-1759.3524699,0.00032062,2]
[408228572,1773268250142,-3035.9485533,0.00032062,2]
[408228573,1773268250151,-381.35403077,0.00032165,2]
[408228574,1773268250161,-196.91790074,0.00032165,2]
[408228575,1773268250171,-902.33440313,0.00032474,2]
[408228576,1773268250180,-652.12345214,0.00032474,2]
[408228577,1773268250190,-347.56,0.000325,7]
[408228578,1773268250199,-7147.76768481,0.000327,2]
[408228579,1773268250208,-3425.01,0.000328,7]
[408228580,1773268250218,-955.14118264,0.00032842,2]
[408228581,1773268250227,-414.2580152,0.00032864,2]
[408228582,1773268250236,-392.5645983,0.00032867,2]
[408228583,1773268250245,-677.4116869,0.00032867,2]
[408228584,1773268250258,-1087.81,0.00032877,2]
[408228585,1773268250268,-500.0,0.00032877,2]
[408228586,1773268250277,-500.0,0.00032877,2]
[408228587,1773268250286,-500.0,0.00032877,2]
[408228588,1773268250295,-500.0,0.00032877,2]
[408228589,1773268250305,-500.0,0.00032877,2]
[408228590,1773268250314,-500.0,0.00032877,2]
[408228591,1773268250324,-380.85354731,0.00032877,2]
[408228592,1773268250334,-150.0,0.00033043,2]
[408228593,1773268250345,-9087.2090106,0.00033157,2]
[408228594,1773268250354,-922.0,0.00033235,2]
[408228595,1773268250364,-1213.0,0.00033235,2]
[408228596,1773268250373,-1043.0,0.00033235,2]
[408228597,1773268250383,-620.0,0.00033235,2]
[408228598,1773268250392,-3506.0,0.00033235,2]
[408228599,1773268250402,-1342.0,0.00033235,2]
[408228600,1773268250411,-500.0,0.00033273,5]
[408228601,1773268250420,-151.0,0.00033286,14]
[408228602,1773268250429,-20242.31,0.00033289,2]
[408228603,1773268250437,-334.67,0.00033454,30]
[408228604,1773268250447,-1854.08,0.000335,2]
[408228605,1773268250456,-433.1438387,0.00033589,33]
[408228606,1773268250464,-1017.48,0.00034,120]
[408228607,1773268250473,-166.66,0.00034237,30]
[408228608,1773268250483,-191.5,0.000343,14]
[408228609,1773268250494,-150.0,0.00034508,2]
[408228610,1773268250503,-1000.0,0.00034575,14]
[408228611,1773268250513,-1000.0,0.00034642,5]
[408228612,1773268250522,-200.0,0.00034688,2]
[408228613,1773268250532,-150.0,0.00034696,2]
[408228614,1773268250542,-1500.0,0.00034795,2]
[408228615,1773268250551,-334.67,0.00034896,30]
[408228616,1773268250561,-166.66,0.00034958,30]
[408228617,1773268250570,-21156.35511155,0.00035,30]
[408228618,1773268250579,-9980.44424367,0.00035,30]
[408228619,1773268250588,-157.22175823,0.00035007,2]
[408228620,1773268250598,-1087.81,0.00035616,2]
[408228621,1773268250607,-166.66,0.00035679,30]
[408228622,1773268250616,-347.56,0.000357,14]
[408228623,1773268250626,-1854.08,0.000357,2]
[408228624,1773268250635,-256.61473022,0.00035982,2]
[408228625,1773268250650,-1500.0,0.00036012,5]
[408228626,1773268250660,-922.0,0.00036235,2]
[408228627,1773268250669,-1213.0,0.00036235,2]
[408228628,1773268250722,-1043.0,0.00036235,2]
[408228629,1773268250732,-620.0,0.00036235,2]
[408228630,1773268250741,-3506.0,0.00036235,2]
[408228631,1773268250751,-1342.0,0.00036235,2]
[408228632,1773268250760,-334.67,0.00036338,30]
[408228633,1773268250769,-166.66,0.000364,30]
[408228634,1773268250779,-150.0,0.0003643,2]
[408228635,1773268250788,-2980.0,0.00036436,5]
[408228636,1773268250798,-3042.0,0.00036436,5]
[408228637,1773268250808,-9087.2090106,0.00036496,2]
[408228638,1773268250817,-545.29944885,0.00036504,2]
[408228639,1773268250827,-7147.76768481,0.00037,2]
[408228640,1773268250836,-166.66,0.00037121,30]
[408228641,1773268250846,-1000.0,0.00037137,14]
[408228642,1773268250855,-1000.0,0.0003747,2]
[408228643,1773268250864,-1000.0,0.0003747,2]
[408228644,1773268250873,-1000.0,0.0003747,2]
[408228645,1773268250883,-1000.0,0.0003747,2]